[Event "Lliga Catalana DH 2023"]
[Site "Catalonia"]
[Date "2023.03.25"]
[Round "10.7"]
[White "Lorenzo De La Riva, Lazaro"]
[Black "Fernandez Aguado, Enrique"]
[Result "0-1"]
[ECO "D82"]
[WhiteElo "2419"]
[BlackElo "2281"]
[Annotator "TA"]
[PlyCount "144"]
[EventDate "2023.01.24"]
[EventType "team-tourn"]
[EventCountry "ESP"]
[SourceTitle "playchess.com"]
[Source "ChessBase"]
[SourceQuality "1"]
[TimeControl "40/5400+30:1800+30"]

{[%evp 9,144,24,36,3,8,-13,-7,-6,-18,-19,-16,-33,-27,-62,-66,-72,-70,-140,-150,-139,-102,-97,-99,-100,-29,-25,-16,-59,-31,-122,-121,-150,-151,-154,-157,-163,-153,-154,-155,-216,-206,-216,-124,-138,-86,-102,-108,-136,-88,-106,-84,-94,-17,-25,-8,-8,0,0,0,0,20,20,20,20,20,22,22,22,22,2,12,2,20,0,0,0,0,0,0,0,0,0,0,0,0,-19,0,-18,0,-98,-98,-166,-131,-350,-97,-83,-83,-209,-209,-350,-301,-264,-70,-70,-70,-70,-70,-70,-70,-81,0,-83,-83,-83,-77,-77,0,-1436,-1408,-772,0,-189,-189,-1348,-6186,-2124,-2468,-29979,-29980,-29982,-29983,-29985,-29986,-29986,-29987,-29987,-29988]} 1. d4 {[%emt 0:00:30]} d5 {[%emt 0:01:33]} 2. Bf4 {[%emt 0:00:26]} c6 {[%emt 0:01:23]} 3. e3 {[%emt 0:01:17]} Nf6 {[%emt 0:00:56]} 4. c4 {[%emt 0:00:20]} g6 {[%emt 0:00:46]} 5. Nc3 {[%emt 0:00:35]} Bg7 {[%emt 0:00:39]} 6. cxd5 {[%emt 0:00:39] D82: Grünfeld: 4 Bf4.} Nxd5 {[%emt 0:00:39]} 7. Nxd5 {[%emt 0:03:11]} Qxd5 {[%emt 0:00:31]} 8. Ne2 {[%emt 0:00:12] The position is equal.} O-O {[%emt 0:05:21]} 9. Nc3 {[%emt 0:01:26]} Qa5 {[%emt 0:00:42] [#]} 10. Qd2 $146 {[%emt 0:08:08]} ({Predecessor:} 10. Be2 c5 11. O-O cxd4 12. exd4 Rd8 13. Nb5 Na6 14. Bd2 Qb6 15. Qa4 Qf6 16. Ba5 {0-1 Gordeev,S (2043)-Papayan,O (2238) Khanty-Mansiysk Governor Cup-B 8th 2012 (3)}) 10... Nd7 {[%emt 0:00:36]} 11. a3 {[%emt 0:03:52]} e5 {[%emt 0:05:27]} 12. dxe5 {[%emt 0:08:48]} Nxe5 {[%emt 0:00:30]} 13. b4 {[%emt 0:03:59]} (13. Be2 $15) 13... Qd8 $17 {[%emt 0:09:07]} 14. Be2 {[%emt 0:02:53]} Be6 {[%emt 0:07:20]} 15. Qc2 {[%emt 0:04:22]} a5 {[%emt 0:01:57] Strongly threatening ...axb4.} 16. O-O {[%emt 0:00:33]} axb4 {[%emt 0:11:21]} (16... Qe7 $17 17. bxa5 Rxa5) 17. axb4 $11 {[%emt 0:00:08]} Qe7 {[%emt 0:00:56]} 18. Rxa8 {[%emt 0:02:17]} Rxa8 {[%emt 0:00:07]} 19. Rb1 {[%emt 0:05:38]} ({White should play} 19. b5 $15) 19... Ra3 {[%emt 0:05:18][%cal Oa3c3]} 20. Ne4 {[%emt 0:05:23]} Ra2 {[%emt 0:07:19]} 21. Qd1 {[%emt 0:00:08]} Bf5 {[%emt 0:00:28]} 22. f3 {[%emt 0:00:07]} Bxe4 {[%emt 0:00:22]} 23. fxe4 {[%emt 0:00:02]} b5 $1 {[%emt 0:01:14] Black has more active pieces.} (23... Qh4 24. b5 $15) 24. Bf1 {[%emt 0:03:38]} (24. Rc1 $17) 24... h5 $19 {[%emt 0:01:04][%cal Bh7h5,Bh5h4][%mdl 32]} (24... Qh4 25. Qd6 Qf2+ 26. Kh1 $11) 25. Qb3 {[%emt 0:00:45]} Ra4 {[%emt 0:01:44]} (25... Rd2 $19 {Hoping for ...Qh4.} 26. Rd1 Rxd1 27. Qxd1 Qxb4 28. Qd8+ Qf8 29. Qxf8+ Kxf8) 26. h3 {[%emt 0:01:11]} g5 {[%emt 0:01:38]} (26... Kh7 $142 27. Be2 Bf6) 27. Bg3 {[%emt 0:00:22]} h4 {[%emt 0:02:03]} 28. Bh2 {[%emt 0:03:25]} Ng6 {[%emt 0:03:47]} (28... Qa7 $142 29. Qc2 Ra2) 29. Qc2 $17 {[%emt 0:00:55]} Qe6 {[%emt 0:01:55]} (29... Rxb4 $6 30. Rxb4 Qxb4 31. Qxc6 $11) 30. Rc1 {[%emt 0:03:41]} Rxb4 {[%emt 0:04:07]} (30... g4 $17 {And now ...g3 would win.} 31. hxg4 Bh6) 31. Qxc6 $11 {[%emt 0:04:10]} Qxc6 {[%emt 0:03:03]} (31... Qb3 $5 {[%cal Rb3e3]}) 32. Rxc6 {[%emt 0:00:04]} Rb1 {[%emt 0:00:05]} 33. Kf2 {[%emt 0:00:08]} Rb2+ {[%emt 0:02:48]} 34. Kf3 {[%emt 0:00:55]} b4 {[%emt 0:01:52]} 35. Bc4 {[%emt 0:00:10] Repels b3} Ne5+ {[%emt 0:02:23]} 36. Bxe5 {[%emt 0:00:02]} Bxe5 {[%emt 0:00:11][%mdl 4096] Endgame KRB-KRB} 37. Rc5 {[%emt 0:00:14]} Bg3 {[%emt 0:02:56]} 38. Rxg5+ {[%emt 0:00:08]} Kf8 {[%emt 0:00:05]} 39. Rf5 {[%emt 0:01:35]} Rf2+ {[%emt 0:01:07]} 40. Kg4 {[%emt 0:00:01]} Ke7 {[%emt 0:05:23]} 41. Rb5 {[%emt 0:38:49]} (41. Bxf7 $2 Rxf5 42. Bb3 Rf2 $19) 41... Rxg2 {[%emt 0:30:24]} 42. Rb7+ {[%emt 0:00:14]} (42. Rxb4 $2 Be1+ 43. Kf4 Bxb4 $19) 42... Kd6 {[%emt 0:01:37]} 43. Bxf7 {[%emt 0:00:35]} Be1+ {[%emt 0:01:51]} 44. Kf5 {[%emt 0:02:49]} Rf2+ {[%emt 0:00:17]} 45. Kg4 {[%emt 0:00:55]} Rg2+ {[%emt 0:00:08]} 46. Kf4 {[%emt 0:08:42]} Rf2+ {[%emt 0:00:55]} 47. Kg5 {[%emt 0:00:16]} Rg2+ {[%emt 0:00:26][%mdl 1024] Black has compensation.} 48. Kf6 {[%emt 0:01:08]} Rf2+ {[%emt 0:00:16]} 49. Kg7 {[%emt 0:00:47]} (49. Kg5 $11) 49... Rf3 $17 {[%emt 0:00:54][%csl LRe3,LRh3]} 50. Rb6+ {[%emt 0:03:13]} (50. Rb5 $17) 50... Kc5 {[%emt 0:00:19]} 51. Rb7 {[%emt 0:01:46]} (51. Rh6 $17 {was the only defense.}) 51... Bc3+ $2 {[%emt 0:00:26]} (51... Rxe3 52. Be6 $19) (51... Rxh3 $19 {is more deadly.} 52. Be6 Rxe3) 52. Kg6 {[%emt 0:00:33]} Rxh3 {[%emt 0:00:24] White must now prevent ...Rg3+.} 53. Kf5 {[%emt 0:00:34]} (53. Kg5 $17) 53... Rxe3 $19 {[%emt 0:00:34] Threatens to win with ...h3.} 54. Bd5 {[%emt 0:00:27]} (54. Be6 {was forced.}) 54... h3 {[%emt 0:02:06]} 55. Rc7+ {[%emt 0:00:07]} Kd6 $2 {[%emt 0:00:30]} ({Better is} 55... Kd4 $19 56. Rh7 Be1) 56. Rc6+ $15 {[%emt 0:00:02]} Kd7 {[%emt 0:00:12]} 57. Rh6 {[%emt 0:00:06] Dodges h2} Bd4 {[%emt 0:01:06]} 58. Rh7+ {[%emt 0:03:23]} Kd6 {[%emt 0:00:18]} 59. Rh6+ {[%emt 0:00:34]} Kd7 {[%emt 0:00:07]} (59... Kc5 $17) 60. Be6+ {[%emt 0:00:22]} (60. Rh7+ $1 $11 {remains equal.} Kd6 61. Rh6+ Kc5 62. Kg4) 60... Kc7 $17 {[%emt 0:00:43]} 61. Rh7+ {[%emt 0:00:15]} Kc6 {[%emt 0:00:19]} 62. Bd5+ {[%emt 0:00:57]} Kd6 {[%emt 0:00:10]} (62... Kc5 $1 $17) 63. Be6 $2 {[%emt 0:01:58][%mdl 8192]} (63. Rh6+ $11 Kc5 64. Kg4) 63... Rf3+ $19 {[%emt 0:01:49]} (63... b3 64. Bxb3 Rxb3 65. Rh6+ (65. Kg4 Re3 $15) 65... Kc7 66. Rh7+ (66. Kg4 Re3 $15) 66... Kd6 67. Rh6+ (67. Kg4 Re3 $15) 67... Kc5 68. Kg4 $15) 64. Kg4 {[%emt 0:00:05] [#]} Re3 $2 {[%emt 0:00:18]} (64... Rf2 $1 $19 65. Bb3 h2 66. Rh6+ Ke7) 65. Bf5 $2 {[%emt 0:00:34] [#]} (65. Kf5 $1 $11) 65... b3 $1 {[%emt 0:01:10][%cal Bb4b3,Bb3b2][%mdl 32] ...Be5 is the strong threat.} 66. Rd7+ $2 {[%emt 0:01:33]} (66. e5+ Rxe5 67. Rxh3) 66... Kc5 {[%emt 0:00:07] ( -> ...b2)} 67. Rc7+ {[%emt 0:00:39]} Kb6 {[%emt 0:00:45]} 68. Rc1 {[%emt 0:00:24]} b2 {[%emt 0:00:12] Black mates.} 69. Rh1 {[%emt 0:00:27]} Be5 {[%emt 0:00:25]} 70. Be6 {[%emt 0:00:33]} h2 {[%emt 0:00:14]} ({Not} 70... Rxe4+ 71. Kxh3 Kc5 72. Bf5 $15) 71. Kf5 {[%emt 0:00:11]} Bg3 {[%emt 0:00:20]} 72. Rb1 {[%emt 0:00:25]} Kc5 {[%emt 0:00:11] Weighted Error Value: White=0.28 (precise) /Black=0.24 (precise)} 0-1

[Event "Lliga Catalana DH 2023"]
[Site "Catalonia"]
[Date "2023.03.25"]
[Round "10.7"]
[White "Baches Garcia, Guillermo"]
[Black "Martin Gonzalez, Angel"]
[Result "1/2-1/2"]
[ECO "B76"]
[WhiteElo "2328"]
[BlackElo "2216"]
[Annotator "TA"]
[PlyCount "45"]
[EventDate "2023.01.24"]
[EventType "team-tourn"]
[EventCountry "ESP"]
[SourceTitle "playchess.com"]
[Source "ChessBase"]
[SourceQuality "1"]
[TimeControl "40/5400+30:1800+30"]

{[%evp 21,32,0,25,15,27,12,14,25,50,0,1,0,9]} 1. e4 c5 2. Nf3 d6 3. d4 cxd4 4. Nxd4 Nf6 5. Nc3 g6 6. Be3 Bg7 7. f3 Nc6 8. Qd2 O-O 9. O-O-O d5 10. Nxc6 bxc6 11. Bh6 Qa5 12. Bxg7 {B76: Sicilian Dragon: Yugoslav Attack, 9 g4 and 9 0-0-0.} Kxg7 13. exd5 cxd5 14. g4 Be6 {[%cal Od5d4]} 15. g5 (15. Qd4 $14 {deserves consideration.} h6 16. a3) 15... Nh5 $1 $11 16. Nxd5 Qxa2 {[#] A rather calm draw.   Weighted Error Value: White=0.09 (flawless) /Black=0.13 (very precise)} {Predecessor:} 17. Qc3+ $146 f6 18. Bc4 Qa1+ 19. Kd2 Qa4 20. Bb3 Qh4 21. Qe3 Bxd5 22. Bxd5 Qb4+ 23. Kc1 {1-0 Ribera Veganzones,S (2199)-Torres Rebolledo,V (2000) Madrid Alcorcon op 1st 2022 (6)} 1/2-1/2

[Event "Lliga Catalana DH 2023"]
[Site "Catalonia"]
[Date "2023.03.25"]
[Round "10.8"]
[White "Perpinya Rofes, Lluis Maria"]
[Black "Pereira, Ruben"]
[Result "0-1"]
[ECO "B67"]
[WhiteElo "2261"]
[BlackElo "2443"]
[Annotator "TA"]
[PlyCount "80"]
[EventDate "2023.01.24"]
[EventType "team-tourn"]
[EventCountry "ESP"]
[SourceTitle "playchess.com"]
[Source "ChessBase"]
[SourceQuality "1"]
[TimeControl "40/5400+30:1800+30"]

{[%evp 20,80,42,4,19,19,31,0,0,-10,-20,-14,-27,-71,-75,-74,-52,-61,-69,-78,-51,-20,-20,-8,-5,-76,-52,-205,-213,-166,-125,-105,-115,-80,0,-254,-130,-128,-57,-42,-49,-33,-50,-25,0,-383,-289,-266,-93,-215,-196,-421,-272,-214,-300,-1009,-943,-1230,-1094,-29990,-29991,-29994,-29995]} 1. e4 {[%emt 0:00:09]} c5 {[%emt 0:00:16]} 2. Nc3 {[%emt 0:00:16]} Nc6 {[%emt 0:00:26]} 3. Nge2 {[%emt 0:00:07]} d6 {[%emt 0:01:53]} 4. d4 {[%emt 0:00:15]} cxd4 {[%emt 0:00:12]} 5. Nxd4 {[%emt 0:00:06]} Nf6 {[%emt 0:00:11]} 6. Bg5 {[%emt 0:01:07]} e6 {[%emt 0:00:22]} 7. Qd2 {[%emt 0:00:21]} a6 {[%emt 0:00:33]} 8. O-O-O {[%emt 0:00:45]} Bd7 {[%emt 0:00:44]} 9. f3 {[%emt 0:00:32]} Nxd4 {[%emt 0:01:00]} 10. Qxd4 {[%emt 0:01:00]} Be7 {[%emt 0:00:25]} 11. h4 {[%emt 0:04:45]} Qc7 {[%emt 0:02:56] B67: Sicilian: Richter-Rauzer: 7...a6 8 0-0-0 Bd7, lines without 9 f4 Be7.} 12. Kb1 {[%emt 0:01:26]} b5 {[%emt 0:02:25]} 13. a3 {[%emt 0:18:58]} Rb8 {[%emt 0:09:46] [#] The position is equal.} 14. Bxf6 $146 {[%emt 0:19:23]} ({Predecessor:} 14. g4 a5 15. Na2 O-O 16. Bxf6 gxf6 17. g5 e5 18. Qd2 Be6 19. Nc1 Rfc8 20. Bd3 {1-0 Maltsevskaya,A (2410)-Farmani Anosheh,A (2346) Titled Tuesday intern op 22nd Feb Late blitz 2022 (4)}) 14... gxf6 {[%emt 0:02:00]} 15. g4 {[%emt 0:03:06]} a5 {[%emt 0:01:56]} 16. b4 {[%emt 0:06:50]} axb4 {[%emt 0:07:41]} 17. axb4 {[%emt 0:00:05]} Rc8 {[%emt 0:15:47]} (17... O-O $5 {[%cal Rf8c8]} 18. g5 fxg5 $15) 18. Kb2 {[%emt 0:04:22] [#]} d5 $1 {[%emt 0:06:49]} 19. exd5 {[%emt 0:09:35]} e5 {[%emt 0:07:18]} (19... O-O $5 {[%cal Re7d6]} 20. Ra1 (20. Nxb5 Qxc2+ 21. Ka3 Bxb5 22. Bxb5 Ra8+) 20... e5 $11 {[%mdl 64] Deflection}) 20. Qd3 {[%emt 0:01:06]} Bxb4 {[%emt 0:10:18]} 21. Ne4 $36 {[%emt 0:01:55][%mdl 2048] White has some pressure.} Ra8 {[%emt 0:02:07] ...Ra3 is the strong threat.} 22. Qb3 {[%emt 0:15:43]} (22. Nxf6+ $2 Kd8 23. Ne4 (23. Nxh7 $2 Ra3 $19 {[%mdl 64] Skewer}) 23... Ra3 $19) (22. c3 $1 $11 Ba3+ 23. Kc2) 22... O-O $17 {[%emt 0:06:40] Dancing on a razor blade.} (22... Qa5 23. c3 (23. Nxf6+ Ke7 $17) 23... Qa3+ 24. Kc2 (24. Qxa3 Bxa3+ 25. Kb3 Ke7 $16) 24... Qxb3+ 25. Kxb3 $16) 23. Bd3 $2 {[%emt 0:04:14]} (23. Qxb4 Ra2+ 24. Kxa2 Qxc2+ 25. Ka3 Ra8+) (23. Nxf6+ Kg7 24. Nh5+ Kh8 $19) (23. d6 $1 $15 Qc6 24. Bd3 (24. Qxb4 Ra2+ {[%mdl 64] Skewer, Decoy} 25. Kxa2 Qxc2+ 26. Ka3 Ra8+) (24. Nxf6+ $2 Kg7 $19) 24... Ba3+ 25. Kb1) 23... Ba3+ $19 {[%emt 0:12:31]} 24. Kb1 {[%emt 0:00:06]} Qa7 {[%emt 0:01:58]} 25. Nxf6+ {[%emt 0:02:32]} Kh8 {[%emt 0:00:11] White must now prevent ...Bc5.} 26. Nxd7 {[%emt 0:01:28] [#]} (26. Bxb5 $2 Bxb5 $19) 26... Bc5 {[%emt 0:04:41]} (26... Qxd7 $1 $17 27. Rhe1 (27. Bxb5 Qd6 $11) 27... Qa7) 27. Kb2 $2 {[%emt 0:00:46][%mdl 8192]} Qxd7 {[%emt 0:00:44]} (27... Bd4+ $1 $19 28. Kc1 (28. c3 $2 b4 $19) 28... Qxd7) 28. Bxb5 $17 {[%emt 0:01:07] [#]} (28. Qxb5 $2 {perishes.} Rfb8 29. Kc3 Rxb5 $19) 28... Qc7 {[%emt 0:01:05] Black is more active.} (28... Qd6 $1 $17 {...Ra3 would be deadly.} 29. Ra1 Rab8) 29. Ra1 $15 {[%emt 0:01:27] Wards off Ra3} Rab8 {[%emt 0:00:22][%mdl 1024] Black has compensation.} 30. c4 {[%emt 0:01:17]} Bd4+ {[%emt 0:00:40]} 31. Kc2 {[%emt 0:00:03]} f5 {[%emt 0:00:54] Strongly threatening ...fxg4.} 32. Raf1 $2 {[%emt 0:00:55][%mdl 8192]} (32. g5 $1 $11 {and White stays safe.}) 32... Qa5 {[%emt 0:00:29]} 33. Kd3 {[%emt 0:00:35]} Rfc8 $2 {[%emt 0:00:29]} (33... Ra8 $19 34. g5 Qb6) 34. Rc1 {[%emt 0:00:25]} (34. gxf5 {is a self mate.} Rxb5 35. Rb1 Rxb3+ 36. Rxb3 Qa4 37. Rc3 Bxc3 38. h5 Qxc4+ 39. Ke3 Bd4+ 40. Kd2 Qc3+ 41. Ke2 Qe3+ 42. Kf1 Qf2#) (34. Ke2 $17) 34... Qa7 {[%emt 0:00:41] And now ...Ra8 would win.} 35. gxf5 $2 {[%emt 0:00:29]} (35. Rhf1 Qe7 36. gxf5) 35... Qf7 {[%emt 0:00:32]} 36. Ke2 {[%emt 0:00:24] [#]} Rg8 $1 {[%emt 0:00:15]} 37. Rh2 {[%emt 0:00:30] Wards off Rg2+} (37. Kd1 Qxf5 38. Rf1) 37... Qxf5 $19 {[%emt 0:00:20] Threatens to win with ...Qf4.} 38. Qd3 {[%emt 0:00:19]} Qf4 {[%emt 0:00:07][%csl LRc1,LRh2]} 39. Rhh1 {[%emt 0:00:31]} Ra8 {[%emt 0:00:31]} ({And not} 39... Qg3 40. Kd1 $15) 40. Rhf1 {[%emt 0:00:26]} Rg2+ {[%emt 0:00:14] A cool game by Pereira.   Weighted Error Value: White=0.87/Black=0.39} 0-1

[Event "Lliga Catalana DH 2023"]
[Site "Catalonia"]
[Date "2023.03.25"]
[Round "10.8"]
[White "Martin Barcelo, Carles"]
[Black "Chueca Forcen, Alberto"]
[Result "1-0"]
[ECO "B31"]
[WhiteElo "2208"]
[BlackElo "2354"]
[Annotator "TA"]
[PlyCount "119"]
[EventDate "2023.01.24"]
[EventType "team-tourn"]
[EventCountry "ESP"]
[SourceTitle "playchess.com"]
[Source "ChessBase"]
[SourceQuality "1"]
[TimeControl "40/5400+30:1800+30"]

{[%evp 17,119,0,0,0,26,13,35,16,69,56,75,0,67,53,165,106,105,95,88,95,95,100,95,104,93,104,98,102,89,90,106,71,98,116,99,97,167,102,199,198,202,188,339,339,354,370,357,346,329,295,383,332,378,383,393,392,380,356,379,372,399,397,501,287,578,550,629,608,588,570,704,698,839,564,826,769,673,627,843,697,1479,1298,12840,12841,12841,12840,12840,12841,12841,12841,12845,12844,12846,0,12844,12843,12845,12844,12845,12843,12844,12844,12845,12845]} 1. e4 c5 2. Nf3 Nc6 3. Bb5 g6 4. O-O Bg7 5. c3 Nf6 6. Re1 O-O 7. d4 d5 8. e5 Ne4 9. Bxc6 bxc6 10. Be3 $1 {[%mdl 4] is now more promising than 10.Nbd2. B31: Sicilian: 2...Nc6 3 Bb5 g6.} Rb8 11. Qc1 Qb6 12. b3 {White is slightly better.} f6 (12... Qa5 $11) 13. dxc5 Qc7 {[#]} (13... Nxc5 $2 14. Qa3 $18) 14. e6 $146 ({Predecessor:} 14. exf6 Bxf6 15. Nfd2 Nxd2 16. Nxd2 e5 17. Nf1 Be6 18. Bg5 Bg7 19. Bh6 Rbe8 20. Bxg7 Qxg7 {1-0 Preotu,R (2473)-Gracia Alvarez,G (2237) Titled Tuesday intern op 09th Nov blitz 2021 (5)}) 14... g5 (14... Bxe6 15. Bf4 Qb7 16. Bxb8 Qxb8 17. Nbd2 $14) (14... Rb7 $11) 15. b4 $14 f5 (15... Bxe6 16. Nd4 Bd7 17. f3 $16) (15... a5 $1 $14) 16. Bd4 (16. Bxg5 $18 {Threatens to win with Bf4.} f4 17. Nbd2 Nxc3 18. Bh6 Ne2+ 19. Rxe2 Bxh6 20. Qa3) 16... g4 $16 17. Bxg7 $1 Kxg7 18. Nd4 {Really sharp!} Rf6 19. Nd2 Bxe6 20. Nxe4 fxe4 {[#]} 21. Qg5+ $1 Kh8 {[#]} 22. Nxe6 $1 Rxe6 23. Qxg4 Rg6 24. Qh5 {[%cal Oc3c4]} Qf4 25. g3 Rf8 26. Qe2 e5 (26... Qh6 $16) 27. c4 ({White should play} 27. Rad1 $18) 27... Qf5 (27... d4 $16 {was necessary.}) 28. cxd5 $18 cxd5 29. Rad1 Rh6 $2 (29... Qe6 30. Rf1 Rf4) 30. f3 exf3 31. Qxe5+ Kg8 {( -> ...f2+)} 32. Qxf5 (32. Rxd5 {is a self mate.} f2+ 33. Kf1 fxe1=Q+ 34. Kxe1 Qf1+ 35. Kd2 Rxh2+) (32. Qxd5+ $2 Qxd5 33. Rxd5 f2+ 34. Kf1 fxe1=N+ 35. Kxe1 Rxh2 $19) 32... Rxf5 {[%mdl 4096] Endgame KRR-KRR} 33. Re7 f2+ 34. Kg2 Ra6 35. Re2 Ra4 36. Rb2 (36. Rxf2 Rxf2+ 37. Kxf2 Rxb4 $18) 36... Kf7 37. b5 (37. Rxf2 Rxf2+ 38. Kxf2 Rxb4 $18) 37... Ke6 38. b6 {And now b7 would win.} (38. Rxf2 Rxf2+ 39. Kxf2 Rxa2+ 40. Ke3 Rc2 $16) 38... axb6 39. cxb6 {[%cal Bc5b6,Bb6b7][%mdl 32] b7 is the strong threat.} Ra8 40. Rf1 ({Inferior is} 40. Rxf2 Rxf2+ 41. Kxf2 Rxa2+ 42. Kf3 Rb2 $11) 40... d4 $2 (40... Rf7 {might work better.} 41. a4 (41. Rfxf2 Rb7 $18) 41... Rb7) 41. Rfxf2 Rfa5 42. b7 Rb8 43. Rfc2 {Rc8 would be deadly.} Ra7 44. Rc7 h5 45. Kf2 Kd5 46. Ke2 Kd6 47. Rh7 Kd5 48. Kd3 Ra3+ 49. Rb3 Rxa2 50. Rxh5+ Kc6 51. Rh6+ Kc7 52. Rh7+ Kc6 53. Kxd4 Re2 54. Rc3+ Kb6 55. Rb3+ $2 (55. Rc8 $18 Rxb7 56. Rch8) 55... Ka7 $2 {[%mdl 8192]} (55... Kc6 $11 56. Rc3+ Kd6) 56. Ra3+ {White is clearly winning.} Kb6 57. Rh6+ Kc7 58. Rc3+ Kd7 59. Rh7+ Kd6 60. Rc8 {Weighted Error Value: White=0.25 (precise) /Black=0.46} 1-0

[Event "Lliga Catalana DH 2023"]
[Site "Catalonia"]
[Date "2023.03.25"]
[Round "10.9"]
[White "Alonso Moyano, Jonathan"]
[Black "Bernado Lopez, Roger"]
[Result "1-0"]
[ECO "B23"]
[WhiteElo "2339"]
[BlackElo "2167"]
[Annotator "TA"]
[PlyCount "51"]
[EventDate "2023.01.24"]
[EventType "team-tourn"]
[EventCountry "ESP"]
[SourceTitle "playchess.com"]
[Source "ChessBase"]
[SourceQuality "1"]
[TimeControl "40/5400+30:1800+30"]

{[%evp 9,51,0,0,0,0,0,0,0,0,0,23,2,0,-19,-5,0,31,30,74,76,73,65,131,139,139,135,135,140,155,136,147,116,160,155,277,270,260,214,796,766,793,772,752,766]} 1. e4 {[%emt 0:00:05]} c5 {[%emt 0:00:08]} 2. Nc3 {[%emt 0:00:12]} Nc6 {[%emt 0:00:11]} 3. Bb5 {[%emt 0:00:12]} Nd4 {[%emt 0:00:05]} 4. Bc4 {[%emt 0:00:08]} e6 {[%emt 0:00:27]} 5. Nge2 {[%emt 0:00:12]} Nf6 {[%emt 0:00:51]} 6. O-O {[%emt 0:00:29] B23: Closed Sicilian: Lines without g3.} a6 {[%emt 0:00:23]} (6... d5 7. exd5 Bd6 8. dxe6 Bxe6 9. Nxd4 cxd4 10. Bxe6 fxe6 11. Nb5 $14) 7. a4 {[%emt 0:07:02]} d5 {[%emt 0:01:57]} 8. exd5 {[%emt 0:00:09] The position is equal.} exd5 {[%emt 0:00:03]} 9. Ba2 {[%emt 0:00:08]} (9. Nxd4 cxd4 10. Nxd5 Nxd5 $15) 9... Bg4 {[%emt 0:12:47] 9...Nxe2+ is the modern continuation.} 10. f3 {[%emt 0:03:18]} (10. h3 $5 {[%cal Rh3g4]} Nxe2+ 11. Nxe2 $11) 10... Be6 {[%emt 0:03:57]} 11. Nxd4 {[%emt 0:08:59]} cxd4 {[%emt 0:00:07]} 12. Ne2 {[%emt 0:00:04]} Bc5 {[%emt 0:01:58]} 13. d3 {[%emt 0:01:14] [#]} Qb6 $146 {[%emt 0:11:46]} ({Predecessor:} 13... h6 14. Bd2 O-O 15. b4 Ba7 16. a5 Nd7 17. f4 Bg4 18. Bxd5 Re8 19. Rf2 Qe7 {½-½ Motylev,A (2644)-Carlsson,P (2463) Wch Blitz St Petersburg 2018 (5)}) 14. Qe1 {[%emt 0:06:16]} O-O {[%emt 0:01:22]} 15. a5 {[%emt 0:04:59]} Qb4 {[%emt 0:07:12]} ({Black should play} 15... Qd8 $14) 16. Bd2 $16 {[%emt 0:01:19]} Qb5 {[%emt 0:19:23]} (16... Qxb2 $2 17. Bb3 $18) 17. b4 {[%emt 0:01:55]} Ba7 {[%emt 0:00:05]} 18. Bb3 {[%emt 0:03:52] [#] Threatens to win with Ba4.} Qc6 {[%emt 0:03:08]} 19. Qh4 {[%emt 0:03:07]} Qd6 {[%emt 0:14:06]} 20. Kh1 {[%emt 0:04:37] White is more active.} (20. Nxd4 $6 Ne4 21. Be3 (21. fxe4 $2 Bxd4+ 22. Kh1 Bxa1 $19) 21... Nc3 $11) 20... Qe5 {[%emt 0:04:12]} 21. Bf4 {[%emt 0:06:27][%cal Bd2f4,Bf4e5,Be5f6][%mdl 32]} Qf5 {[%emt 0:01:45]} (21... Qxe2 $2 22. Rfe1 $18) (21... Qh5 $16 {was called for.} 22. Qxh5 Nxh5) 22. g4 $18 {[%emt 0:09:44]} Qg6 {[%emt 0:00:48]} 23. Be5 {[%emt 0:00:29] Nf4 would be deadly.} Rfe8 $2 {[%emt 0:01:08]} (23... h6 24. Rae1 (24. Nxd4 Nd7 $16) (24. Bxd4 Bxd4 25. Nxd4 Bd7 $16) 24... Rad8) 24. Nf4 {[%emt 0:00:29] White is clearly winning.} ({Weaker is} 24. Nxd4 Nd7 $16) ({Not} 24. Bxd4 Bxd4 25. Nxd4 h6 $18) 24... Qh6 {[%emt 0:04:04]} 25. Qxh6 {[%emt 0:00:12][%mdl 64] [#] Remove Defender, Deflection} gxh6 {[%emt 0:00:02]} 26. Bxf6 {[%emt 0:00:07] Weighted Error Value: White=0.08 (flawless) /Black=0.27 (precise)} 1-0

[Event "Lliga Catalana DH 2023"]
[Site "Catalonia"]
[Date "2023.03.25"]
[Round "10.9"]
[White "Garcia Jimenez, Francisco Javier"]
[Black "Rovira Vila, Jaume"]
[Result "1-0"]
[ECO "B13"]
[WhiteElo "2230"]
[BlackElo "2071"]
[Annotator "TA"]
[PlyCount "41"]
[EventDate "2023.01.24"]
[EventType "team-tourn"]
[EventCountry "ESP"]
[SourceTitle "playchess.com"]
[Source "ChessBase"]
[SourceQuality "1"]
[TimeControl "40/5400+30:1800+30"]

{[%evp 9,41,14,16,11,18,9,15,-4,15,14,16,15,15,14,21,16,18,16,17,9,18,30,349,352,339,346,375,363,375,354,481,435,748,736]} 1. e4 c6 2. Nf3 d5 3. exd5 cxd5 4. d4 Nf6 5. Ne5 g6 6. Bd3 {B13: Caro-Kann: Exchange Variation and Panov-Botvinnik Attack.} Bg7 7. c3 {was the old line (7.0-0).} Nc6 8. f4 {The position is equal.} O-O 9. O-O {[%cal Bh1f1,Bf1f3,Bf3h3][%mdl 32]} Bf5 10. Bxf5 gxf5 11. Rf3 e6 12. Rh3 Rc8 13. Nd2 {[%cal Bb1d2,Bd2f1,Bf1g3,Bg3h5,Bh5g7][%mdl 32]} Ne7 {[#]} 14. Nf1 $146 ({Predecessor:} 14. a4 Rc7 15. Qe2 a6 16. Nf1 Nc8 17. b3 Ne7 18. Ba3 Ne4 19. Bb4 Qc8 20. Bxe7 Rxe7 {1-0 Beveridge,C (2175)-Owens,J (2173) W-ch WS/M/643 email 2017}) 14... Ng6 15. Ng3 Nxe5 $4 {[%mdl 8192] This costs Black the game.} (15... Re8 $11) 16. fxe5 $18 Ng4 {[#]} 17. Nh5 f6 18. Rg3 fxe5 {...Qh4 would be deadly.} 19. h3 exd4 20. Nxg7 ({Weaker is} 20. hxg4 f4 21. Bxf4 (21. Nxf4 Qb6 $16) 21... Qb6 $18) (20. cxd4 e5 21. hxg4 f4 $18) 20... Qd6 (20... Kxg7 $142 21. Qxd4+ {[%mdl 64] Pin} Qf6 22. hxg4 f4) 21. Nh5 {Weighted Error Value: White=0.03 (flawless) /Black=0.56} 1-0